fUSD/lending_fUSD_20241220
["ID","MTS","AMOUNT","RATE_DAILY","PERIOD"]
[346099216,1734705084403,-500.0,0.00022465,4]
[346099217,1734705084413,-500.0,0.00022465,4]
[346099218,1734705084525,-389.92528818,0.00022465,4]
[346099219,1734705084535,-619.34,0.00022465,4]
[346099220,1734705084544,-500.0,0.00022465,4]
[346099221,1734705084553,-500.0,0.00022465,4]
[346099222,1734705084563,-500.0,0.00022465,4]
[346099223,1734705084572,-500.0,0.00022465,4]
[346099224,1734705084582,-1919.94,0.00022465,4]
[346099225,1734705084591,-500.0,0.00022465,4]
[346099226,1734705084600,-500.0,0.00022465,4]
[346099227,1734705084609,-500.0,0.00022465,4]
[346099228,1734705084618,-500.0,0.00022465,4]
[346099229,1734705084627,-271.19,0.00022465,4]
[346099230,1734705084637,-500.0,0.00022465,4]
[346099231,1734705084646,-500.0,0.00022465,4]
[346099232,1734705084656,-1914.57,0.00022465,4]
[346099233,1734705084665,-203.53624848,0.00022465,4]
[346099234,1734705084675,-500.0,0.00022465,4]
[346099235,1734705084688,-500.0,0.00022465,4]
[346099236,1734705084698,-733.73,0.00022465,4]
[346099237,1734705084707,-500.0,0.00022465,4]
[346099238,1734705084717,-500.0,0.00022465,4]
[346099239,1734705084726,-500.0,0.00022465,4]
[346099240,1734705084735,-696.31,0.00022465,4]
[346099241,1734705084744,-704.45,0.00022465,4]
[346099242,1734705084754,-500.0,0.00022465,2]
[346099243,1734705084764,-500.0,0.00022465,4]
[346099244,1734705084774,-500.0,0.00022465,4]
[346099245,1734705084784,-500.0,0.00022465,4]
[346099246,1734705084793,-865.58,0.00022465,4]
[346099247,1734705084802,-624.83,0.00022465,4]
[346099248,1734705084811,-975.48,0.00022465,4]
[346099249,1734705084821,-500.0,0.00022465,4]
[346099250,1734705084830,-500.0,0.00022465,4]
[346099251,1734705084840,-500.0,0.00022465,4]
[346099252,1734705084849,-515.76,0.00022465,4]
[346099253,1734705084859,-500.0,0.00022465,4]
[346099254,1734705084868,-500.0,0.00022465,4]
[346099255,1734705084877,-500.0,0.00022465,4]
[346099256,1734705084887,-500.0,0.00022465,4]
[346099257,1734705084896,-500.0,0.00022465,4]
[346099258,1734705084906,-500.0,0.00022465,4]
[346099259,1734705084916,-500.0,0.00022465,4]
[346099260,1734705084925,-732.91,0.00022465,4]
[346099261,1734705084939,-1106.39,0.00022465,4]
[346099262,1734705084949,-505.51,0.00022465,4]
[346099263,1734705084958,-500.0,0.00022465,4]
[346099264,1734705084968,-500.0,0.00022465,4]
[346099265,1734705084978,-880.48,0.00022465,4]
[346099266,1734705084987,-500.0,0.00022465,4]
[346099267,1734705084995,-500.0,0.00022465,4]
[346099268,1734705085005,-500.0,0.00022465,4]
[346099269,1734705085015,-500.0,0.00022465,4]
[346099270,1734705085025,-500.0,0.00022465,4]
[346099271,1734705085035,-500.0,0.00022465,4]
[346099272,1734705085044,-500.0,0.00022465,4]
[346099273,1734705085053,-500.0,0.00022465,4]
[346099274,1734705085063,-500.0,0.00022465,4]
[346099275,1734705085072,-500.0,0.00022465,4]
[346099276,1734705085081,-510.65136086,0.00022465,4]
[346099277,1734705085092,-549.35,0.00022465,4]
[346099278,1734705085103,-504.90871514,0.00022465,4]
[346099279,1734705085112,-500.0,0.00022465,4]
[346099280,1734705085122,-500.0,0.00022465,4]
[346099281,1734705085131,-500.0,0.00022465,4]
[346099282,1734705085141,-500.0,0.00022465,4]
[346099283,1734705085150,-500.0,0.00022465,4]
[346099284,1734705085160,-500.0,0.00022465,4]
[346099285,1734705085169,-500.0,0.00022465,4]
[346099286,1734705085181,-500.0,0.00022465,4]
[346099287,1734705085191,-500.0,0.00022465,4]
[346099288,1734705085200,-500.0,0.00022465,4]
[346099289,1734705085210,-500.0,0.00022465,4]
[346099290,1734705085222,-500.0,0.00022465,4]
[346099291,1734705085232,-477.436676,0.00022465,7]
[346099292,1734705085242,-500.0,0.00022465,4]
[346099293,1734705085252,-500.0,0.00022465,4]
[346099294,1734705085261,-477.436669,0.00022465,7]
[346099295,1734705085272,-500.0,0.00022465,4]
[346099296,1734705085281,-500.0,0.00022465,4]
[346099297,1734705085292,-575.74,0.00022465,4]
[346099298,1734705085302,-500.0,0.00022465,4]
[346099299,1734705085312,-500.0,0.00022465,4]
[346099300,1734705085321,-500.0,0.00022465,4]
[346099301,1734705085332,-626.11,0.00022465,4]
[346099302,1734705085342,-500.0,0.00022465,4]
[346099303,1734705085351,-500.0,0.00022465,4]
[346099304,1734705085361,-573.298386,0.00022465,7]
[346099305,1734705085372,-500.0,0.00022465,4]
[346099306,1734705085382,-892.44,0.00022465,4]
[346099307,1734705085392,-867.32,0.00022465,4]
[346099308,1734705085402,-573.298378,0.00022465,7]
[346099309,1734705085412,-500.0,0.00022465,4]
[346099310,1734705085421,-500.0,0.00022465,4]
[346099311,1734705085433,-500.0,0.00022465,4]
[346099312,1734705085442,-572.67,0.00022465,4]
[346099313,1734705085452,-587.12,0.00022465,4]
[346099314,1734705085461,-500.0,0.00022465,4]
[346099315,1734705085470,-500.0,0.00022465,4]
[346099316,1734705085479,-882.96,0.00022465,4]
[346099317,1734705085489,-628.87,0.00022465,4]
[346099318,1734705085499,-500.0,0.00022465,4]
[346099319,1734705085508,-500.0,0.00022465,4]
[346099320,1734705085518,-500.0,0.00022465,4]
[346099321,1734705085528,-500.0,0.00022465,4]
[346099322,1734705085537,-531.92,0.00022465,4]
[346099323,1734705085548,-500.0,0.00022465,4]
[346099324,1734705085558,-500.0,0.00022465,4]
[346099325,1734705085568,-1531.54,0.00022465,4]
[346099326,1734705085578,-151.0,0.00022465,7]
[346099327,1734705085587,-797.56,0.00022465,4]
[346099328,1734705085597,-500.0,0.00022465,4]
[346099329,1734705085607,-573.13,0.00022465,4]
[346099330,1734705085616,-500.0,0.00022465,4]
[346099331,1734705085625,-500.0,0.00022465,4]
[346099332,1734705085635,-500.0,0.00022465,4]
[346099333,1734705085645,-500.0,0.00022465,4]
[346099334,1734705085655,-1191.56,0.00022465,4]
[346099335,1734705085665,-500.0,0.00022465,4]
[346099336,1734705085675,-898.63,0.00022465,4]
[346099337,1734705085688,-1462.97,0.00022465,4]
[346099338,1734705085698,-500.0,0.00022465,4]
[346099339,1734705085707,-690.32,0.00022465,4]
[346099340,1734705085717,-500.0,0.00022465,4]
[346099341,1734705085727,-500.0,0.00022465,4]
[346099342,1734705085736,-895.67,0.00022465,4]
[346099343,1734705085746,-500.0,0.00022465,4]
[346099344,1734705085756,-151.0,0.00022465,7]
[346099345,1734705085766,-500.0,0.00022465,4]
[346099346,1734705085776,-2453.25,0.00022465,4]
[346099347,1734705085786,-500.0,0.00022465,4]
[346099348,1734705085796,-500.0,0.00022465,4]
[346099349,1734705085805,-500.0,0.00022465,4]
[346099350,1734705085815,-500.0,0.00022465,4]
[346099351,1734705085825,-500.0,0.00022465,4]
[346099352,1734705085835,-500.0,0.00022465,4]
[346099353,1734705085845,-596.16,0.00022465,4]
[346099354,1734705085854,-500.0,0.00022465,4]
[346099355,1734705085865,-302.12785226,0.00022465,4]
[346099356,1734705085875,-2002.3,0.00022465,4]
[346099357,1734705085884,-504.65811802,0.00022465,4]
[346099358,1734705085894,-500.0,0.00022465,4]
[346099359,1734705085904,-500.0,0.00022465,4]
[346099360,1734705085914,-500.0,0.00022465,4]
[346099361,1734705085924,-500.0,0.00022465,4]
[346099362,1734705085938,-500.0,0.00022465,4]
[346099363,1734705085948,-500.0,0.00022465,4]
[346099364,1734705085958,-2126.04,0.00022465,4]
[346099365,1734705085968,-1149.07,0.00022465,4]
[346099366,1734705085978,-151.0,0.00022465,7]
[346099367,1734705085988,-1147.67,0.00022465,4]
[346099368,1734705085998,-1974.63,0.00022465,4]
[346099369,1734705086008,-922.26,0.00022465,4]
[346099370,1734705086017,-585.88,0.00022465,4]
[346099371,1734705086027,-645.53,0.00022465,4]
[346099372,1734705086037,-500.0,0.00022465,4]
[346099373,1734705086047,-1312.39,0.00022465,4]
[346099374,1734705086056,-1995.26,0.00022465,4]
[346099375,1734705086067,-500.0,0.00022465,4]
[346099376,1734705086078,-626.7,0.00022465,4]
[346099377,1734705086088,-591.96,0.00022465,4]
[346099378,1734705086099,-500.0,0.00022465,4]
[346099379,1734705086109,-444.37747966,0.00022465,4]
[346099380,1734705086119,-500.0,0.00022465,4]
[346099381,1734705086129,-500.0,0.00022465,4]
[346099382,1734705086139,-500.0,0.00022465,4]
[346099383,1734705086149,-4286.95,0.00022465,4]
[346099384,1734705086159,-1869.88,0.00022465,4]
[346099385,1734705086169,-1582.21,0.00022465,4]
[346099386,1734705086182,-500.0,0.00022465,4]
[346099387,1734705086192,-1996.44,0.00022465,4]
[346099388,1734705086201,-918.42,0.00022465,4]
[346099389,1734705086210,-500.0,0.00022465,4]
[346099390,1734705086220,-500.0,0.00022465,4]
[346099391,1734705086229,-505.44545312,0.00022465,4]
[346099392,1734705086239,-2729.02,0.00022465,4]
[346099393,1734705086249,-500.0,0.00022465,4]
[346099394,1734705086259,-500.0,0.00022465,4]
[346099395,1734705086270,-901.44,0.00022465,4]
[346099396,1734705086281,-500.0,0.00022465,4]
[346099397,1734705086293,-381.06929681,0.00022465,4]
[346099398,1734705086303,-576.4,0.00022465,4]
[346099399,1734705086313,-500.0,0.00022465,4]
[346099400,1734705086323,-500.0,0.00022465,4]
[346099401,1734705086334,-2844.5,0.00022465,4]
[346099402,1734705086344,-500.0,0.00022465,4]
[346099403,1734705086354,-500.0,0.00022465,4]
[346099404,1734705086365,-2473.03,0.00022465,4]
[346099405,1734705086375,-4012.09,0.00022465,4]
[346099406,1734705086385,-500.0,0.00022465,4]
[346099407,1734705086395,-500.0,0.00022465,4]
[346099408,1734705086405,-500.39,0.00022465,4]
[346099409,1734705086415,-500.0,0.00022465,4]
[346099410,1734705086425,-542.96,0.00022465,4]
[346099411,1734705086441,-516.15,0.00022465,4]
[346099412,1734705086451,-877.15,0.00022465,4]
[346099413,1734705086460,-1483.16,0.00022465,4]
[346099414,1734705086470,-500.0,0.00022465,4]
[346099415,1734705086481,-3922.15,0.00022465,4]
[346099416,1734705086491,-881.23,0.00022465,4]
[346099417,1734705086502,-2575.39,0.00022465,4]
[346099418,1734705086512,-14313.01,0.00022465,4]
[346099419,1734705086521,-500.0,0.00022465,4]
[346099420,1734705086531,-500.0,0.00022465,4]
[346099421,1734705086540,-500.0,0.00022465,4]
[346099422,1734705086550,-550.65,0.00022465,4]
[346099423,1734705086560,-5233.77,0.00022465,4]
[346099424,1734705086569,-1199.62,0.00022465,4]
[346099425,1734705086579,-526.33,0.00022465,4]
[346099426,1734705086588,-1198.28,0.00022465,4]
[346099427,1734705086597,-500.0,0.00022465,4]
[346099428,1734705086607,-822.83,0.00022465,4]
[346099429,1734705086616,-500.0,0.00022465,4]
[346099430,1734705086625,-500.0,0.00022465,4]
[346099431,1734705086634,-1305.96,0.00022465,4]
[346099432,1734705086644,-502.78913282,0.00022465,4]
[346099433,1734705086653,-500.0,0.00022465,4]
[346099434,1734705086663,-2054.82,0.00022465,4]
[346099435,1734705086673,-500.0,0.00022465,4]
[346099436,1734705086687,-781.1,0.00022465,4]
[346099437,1734705086696,-500.0,0.00022465,4]
[346099438,1734705086706,-500.0,0.00022465,4]
[346099439,1734705086717,-2976.46,0.00022465,4]
[346099440,1734705086727,-532.86,0.00022465,4]
[346099441,1734705086737,-1376.74,0.00022465,4]
[346099442,1734705086747,-1406.29,0.00022465,4]
[346099443,1734705086758,-500.0,0.00022465,4]
[346099444,1734705086769,-732.83,0.00022465,4]
[346099445,1734705086779,-2019.8,0.00022465,4]
[346099446,1734705086789,-500.0,0.00022465,4]
[346099447,1734705086799,-500.0,0.00022465,4]
[346099448,1734705086809,-594.71,0.00022465,4]
[346099449,1734705086819,-623.99,0.00022465,4]
[346099450,1734705086829,-14207.49,0.00022465,4]
[346099451,1734705086839,-207.565158,0.00022465,4]
[346099452,1734705086849,-3380.89,0.00022465,4]
[346099453,1734705086859,-500.0,0.00022465,4]
[346099454,1734705086869,-500.0,0.00022465,4]
[346099455,1734705086879,-584.56,0.00022465,4]
[346099456,1734705086889,-1870.48,0.00022465,4]
[346099457,1734705086899,-2641.01,0.00022465,4]
[346099458,1734705086908,-1151.74,0.00022465,4]
[346099459,1734705086918,-1068.83,0.00022465,4]
[346099460,1734705086932,-500.0,0.00022465,4]
[346099461,1734705086942,-500.0,0.00022465,4]
[346099462,1734705086953,-2387.91,0.00022465,4]
[346099463,1734705086963,-500.0,0.00022465,4]
[346099464,1734705086973,-2569.35,0.00022465,4]
[346099465,1734705086983,-500.0,0.00022465,4]
[346099466,1734705086994,-1641.53,0.00022465,4]
[346099467,1734705087004,-7684.97,0.00022465,4]
[346099468,1734705087014,-500.0,0.00022465,4]
[346099469,1734705087024,-500.0,0.00022465,4]
[346099470,1734705087034,-225.61934119,0.00022465,4]
[346099471,1734705087044,-500.0,0.00022465,4]
[346099472,1734705087054,-1122.02,0.00022465,4]
[346099473,1734705087064,-500.0,0.00022465,4]
[346099474,1734705087074,-261.45601187,0.00022465,4]
[346099475,1734705087084,-500.0,0.00022465,4]
[346099476,1734705087094,-3739.73,0.00022465,4]
[346099477,1734705087104,-1657.74,0.00022465,4]
[346099478,1734705087114,-500.0,0.00022465,4]
[346099479,1734705087124,-572.34,0.00022465,4]
[346099480,1734705087134,-1002.92,0.00022465,4]
[346099481,1734705087144,-500.0,0.00022465,4]
[346099482,1734705087154,-500.0,0.00022465,4]
[346099483,1734705087163,-500.0,0.00022465,4]
[346099484,1734705087173,-1449.75,0.00022465,4]
[346099485,1734705087187,-4285.0,0.00022465,4]
[346099486,1734705087198,-500.0,0.00022465,4]
[346099487,1734705087208,-1876.8,0.00022465,4]
[346099488,1734705087217,-500.0,0.00022465,4]
[346099489,1734705087227,-3137.09,0.00022465,4]
[346099490,1734705087237,-500.0,0.00022465,4]
[346099491,1734705087247,-500.0,0.00022465,4]
[346099492,1734705087257,-500.0,0.00022465,4]
[346099493,1734705087269,-171.847622,0.00022465,4]
[346099494,1734705087279,-938.17,0.00022465,4]
[346099495,1734705087293,-500.0,0.00022465,4]
[346099496,1734705087303,-1128.3,0.00022465,4]
[346099497,1734705087313,-630.09,0.00022465,4]
[346099498,1734705087323,-500.0,0.00022465,4]
[346099499,1734705087335,-653.61,0.00022465,4]
[346099500,1734705087345,-500.0,0.00022465,4]
[346099501,1734705087356,-1928.85,0.00022465,4]
[346099502,1734705087366,-2099.69,0.00022465,4]
[346099503,1734705087378,-7043.04,0.00022465,4]
[346099504,1734705087388,-500.0,0.00022465,4]
[346099505,1734705087399,-2163.13,0.00022465,4]
[346099506,1734705087409,-500.0,0.00022465,4]
[346099507,1734705087420,-500.0,0.00022465,4]
[346099508,1734705087434,-500.0,0.00022465,4]
[346099509,1734705087444,-970.03,0.00022465,4]
[346099510,1734705087455,-500.0,0.00022465,4]
[346099511,1734705087465,-2134.52,0.00022465,4]
[346099512,1734705087475,-500.0,0.00022465,4]
[346099513,1734705087485,-500.0,0.00022465,4]
[346099514,1734705087496,-500.0,0.00022465,4]
[346099515,1734705087506,-2369.63,0.00022465,4]
[346099516,1734705087516,-1668.69,0.00022465,4]
[346099517,1734705087525,-500.0,0.00022465,4]
[346099518,1734705087535,-158.831874,0.00022465,4]
[346099519,1734705087545,-500.0,0.00022465,4]
[346099520,1734705087555,-500.0,0.00022465,4]
[346099521,1734705087565,-500.0,0.00022465,4]
[346099522,1734705087576,-500.0,0.00022465,4]
[346099523,1734705087586,-500.0,0.00022465,4]
[346099524,1734705087596,-500.0,0.00022465,4]
[346099525,1734705087606,-500.0,0.00022465,4]
[346099526,1734705087617,-500.0,0.00022465,4]
[346099527,1734705087627,-500.0,0.00022465,4]
[346099528,1734705087637,-653.02,0.00022465,4]
[346099529,1734705087647,-500.0,0.00022465,4]
[346099530,1734705087656,-500.0,0.00022465,4]
[346099531,1734705087667,-500.0,0.00022465,4]
[346099532,1734705087681,-505.43,0.00022465,4]
[346099533,1734705087690,-1168.08,0.00022465,4]
[346099534,1734705087847,-500.0,0.00022465,4]
[346099535,1734705087873,-500.0,0.00022465,4]
[346099536,1734705087883,-709.06,0.00022465,4]
[346099537,1734705087893,-533.99,0.00022465,4]
[346099538,1734705087903,-500.0,0.00022465,4]
[346099539,1734705087912,-1659.64,0.00022465,4]
[346099540,1734705087922,-500.0,0.00022465,4]
[346099541,1734705087934,-729.79,0.00022465,4]
[346099542,1734705087944,-500.0,0.00022465,4]
[346099543,1734705087954,-500.0,0.00022465,4]
[346099544,1734705087963,-638.20204608,0.00022465,4]
[346099545,1734705087973,-875.71,0.00022465,4]
[346099546,1734705087983,-644.22,0.00022465,4]
[346099547,1734705087992,-560.49,0.00022465,4]
[346099548,1734705088003,-500.0,0.00022465,4]
[346099549,1734705088013,-11283.25,0.00022465,4]
[346099550,1734705088022,-500.0,0.00022465,4]
[346099551,1734705088032,-500.0,0.00022465,4]
[346099552,1734705088042,-500.0,0.00022465,4]
[346099553,1734705088052,-500.0,0.00022465,4]
[346099554,1734705088062,-1169.27,0.00022465,4]
[346099555,1734705088072,-163.65136335,0.00022465,4]
[346099556,1734705088082,-500.0,0.00022465,4]
[346099557,1734705088091,-500.0,0.00022465,4]
[346099558,1734705088101,-500.0,0.00022465,4]
[346099559,1734705088111,-1083.29,0.00022465,4]
[346099560,1734705088122,-500.0,0.00022465,4]
[346099561,1734705088132,-1374.41,0.00022465,4]
[346099562,1734705088142,-500.0,0.00022465,4]
[346099563,1734705088152,-500.0,0.00022465,4]
[346099564,1734705088161,-500.0,0.00022465,4]
[346099565,1734705088171,-527.09131494,0.00022465,4]
[346099566,1734705088188,-501.84828322,0.00022465,4]
[346099567,1734705088198,-500.0,0.00022465,4]
[346099568,1734705088208,-500.0,0.00022465,4]
[346099569,1734705088218,-1644.02,0.00022465,4]
[346099570,1734705088228,-766.85,0.00022465,4]
[346099571,1734705088238,-1990.15,0.00022465,4]
[346099572,1734705088249,-505.05752234,0.00022465,4]
[346099573,1734705088259,-500.0,0.00022465,4]
[346099574,1734705088269,-1025.82,0.00022465,4]
[346099575,1734705088283,-1150.78,0.00022465,4]
[346099576,1734705088297,-500.0,0.00022465,4]
[346099577,1734705088308,-500.0,0.00022465,4]
[346099578,1734705088318,-500.0,0.00022465,4]
[346099579,1734705088328,-500.0,0.00022465,4]
[346099580,1734705088338,-626.0,0.00022465,4]
[346099581,1734705088347,-2550.51,0.00022465,4]
[346099582,1734705088359,-500.0,0.00022465,4]
[346099583,1734705088370,-500.0,0.00022465,4]
[346099584,1734705088380,-1894.92,0.00022465,4]
[346099585,1734705088390,-500.0,0.00022465,4]
[346099586,1734705088400,-500.0,0.00022465,4]
[346099587,1734705088410,-1717.15,0.00022465,4]
[346099588,1734705088420,-777.61,0.00022465,4]
[346099589,1734705088433,-505.65334688,0.00022465,4]
[346099590,1734705088443,-2160.93,0.00022465,4]
[346099591,1734705088453,-500.0,0.00022465,3]
[346099592,1734705088464,-500.0,0.00022465,4]
[346099593,1734705088474,-500.0,0.00022465,4]
[346099594,1734705088484,-578.41345787,0.00022465,4]
[346099595,1734705088495,-500.0,0.00022465,4]
[346099596,1734705088505,-500.0,0.00022465,4]
[346099597,1734705088516,-500.0,0.00022465,4]
[346099598,1734705088526,-500.0,0.00022465,4]
[346099599,1734705088536,-500.0,0.00022465,4]
[346099600,1734705088544,-1472.85,0.00022465,4]
[346099601,1734705088554,-500.0,0.00022465,4]
[346099602,1734705088563,-1056.0,0.00022491,2]
[346099603,1734705088573,-613.0,0.00022493,2]
[346099604,1734705088583,-155.66422561,0.00022493,2]
[346099605,1734705088593,-675.07352,0.000225,2]
[346099606,1734705088604,-3017.0,0.000225,2]
[346099607,1734705088614,-8000.0,0.000225,2]
[346099608,1734705088623,-3419.137949,0.000225,2]
[346099609,1734705088633,-501.907202,0.000225,2]
[346099610,1734705088643,-33908.45227033,0.000225,2]
[346099611,1734705088653,-600.0,0.000225,7]
[346099612,1734705088663,-600.0,0.000225,7]
[346099613,1734705088672,-600.0,0.000225,7]
[346099614,1734705088687,-604.85446903,0.000225,7]
[346099615,1734705088697,-151.52124903,0.00022521,2]
[346099616,1734705088707,-1000.0,0.00022521,2]
[346099617,1734705088716,-501.70462133,0.00022521,2]
[346099618,1734705088726,-932.43129463,0.00022548,2]
[346099619,1734705088736,-1898.0,0.00022557,2]
[346099620,1734705088745,-3769.0,0.00022557,2]
[346099621,1734705088754,-818.0,0.00022557,2]
[346099622,1734705088764,-764.673,0.00022557,2]
[346099623,1734705088773,-911.0,0.00022557,2]
[346099624,1734705088783,-536.0,0.00022557,2]
[346099625,1734705088793,-3680.0,0.00022557,2]
[346099626,1734705088802,-1084.0,0.00022557,2]
[346099627,1734705088813,-3885.0,0.00022557,2]
[346099628,1734705088822,-150.0,0.00022557,2]
[346099629,1734705088832,-1264.0,0.00022557,2]
[346099630,1734705088842,-635.0,0.00022557,2]
[346099631,1734705088852,-2010.0,0.00022557,2]
[346099632,1734705088862,-1029.0,0.00022558,2]
[346099633,1734705088872,-524.0,0.00022558,2]
[346099634,1734705088882,-342.72397,0.00022561,15]
[346099635,1734705088892,-210.0,0.0002257,2]
[346099636,1734705088902,-230.0,0.000226,2]
[346099637,1734705088911,-973.3,0.000226,2]
[346099638,1734705088921,-186.64,0.00022603,2]
[346099639,1734705088937,-151.52124903,0.0002263,2]
[346099640,1734705088948,-1500.0,0.00022639,2]
[346099641,1734705088957,-222.369391,0.00022657,2]
[346099642,1734705088968,-932.43129463,0.00022658,2]
[346099643,1734705088978,-155.66422561,0.00022685,2]
[346099644,1734705088988,-3000.0,0.000227,2]
[346099645,1734705088998,-224.19475008,0.00022713,2]
[346099646,1734705089008,-2928.17204732,0.00022738,20]
[346099647,1734705089018,-250.237156,0.00022739,4]
[346099648,1734705089028,-500.0,0.00022739,4]
[346099649,1734705089037,-500.0,0.00022739,4]
[346099650,1734705089046,-500.0,0.00022739,4]
[346099651,1734705089056,-500.0,0.00022739,4]
[346099652,1734705089066,-500.0,0.00022739,4]
[346099653,1734705089075,-500.0,0.00022739,4]
[346099654,1734705089085,-500.0,0.00022739,4]
[346099655,1734705089095,-508.09739381,0.00022739,4]
[346099656,1734705089105,-500.0,0.00022739,4]
[346099657,1734705089115,-500.0,0.00022739,4]
[346099658,1734705089124,-500.0,0.00022739,4]
[346099659,1734705089134,-500.0,0.00022739,4]
[346099660,1734705089144,-500.0,0.00022739,4]
[346099661,1734705089154,-500.0,0.00022739,4]
[346099662,1734705089163,-500.0,0.00022739,4]
[346099663,1734705089173,-500.0,0.00022739,4]
[346099664,1734705089186,-728.98,0.00022739,4]
[346099665,1734705089195,-500.0,0.00022739,4]
[346099666,1734705089205,-505.24967378,0.00022739,4]
[346099667,1734705089214,-500.0,0.00022739,4]
[346099668,1734705089224,-500.0,0.00022739,4]
[346099669,1734705089234,-500.0,0.00022739,4]
[346099670,1734705089243,-500.0,0.00022739,4]
[346099671,1734705089256,-500.0,0.00022739,4]
[346099672,1734705089266,-504.45662197,0.00022739,4]
[346099673,1734705089275,-500.0,0.00022739,4]
[346099674,1734705089285,-500.0,0.00022739,4]
[346099675,1734705089298,-500.0,0.00022739,4]
[346099676,1734705089307,-502.31058251,0.00022739,4]
[346099677,1734705089317,-503.76845412,0.00022739,4]
[346099678,1734705089327,-560.39,0.00022739,4]
[346099679,1734705089336,-500.0,0.00022739,4]
[346099680,1734705089345,-500.0,0.00022739,4]
[346099681,1734705089354,-500.0,0.00022739,4]
[346099682,1734705089363,-500.0,0.00022739,4]
[346099683,1734705089373,-500.0,0.00022739,4]
[346099684,1734705089382,-500.0,0.00022739,4]
[346099685,1734705089392,-500.0,0.00022739,4]
[346099686,1734705089402,-500.0,0.00022739,4]
[346099687,1734705089412,-504.6220798,0.00022739,4]
[346099688,1734705089422,-500.0,0.00022739,4]
[346099689,1734705089437,-500.0,0.00022739,4]
[346099690,1734705089446,-500.0,0.00022739,4]
[346099691,1734705089455,-703.15,0.00022739,4]
[346099692,1734705089465,-500.0,0.00022739,4]
[346099693,1734705089474,-500.0,0.00022739,4]
[346099694,1734705089484,-500.0,0.00022739,4]
[346099695,1734705089493,-500.0,0.00022739,4]
[346099696,1734705089503,-500.0,0.00022739,4]
[346099697,1734705089512,-500.0,0.00022739,4]
[346099698,1734705089522,-500.0,0.00022739,4]
[346099699,1734705089531,-500.0,0.00022739,4]
[346099700,1734705089541,-500.0,0.00022739,4]
[346099701,1734705089551,-500.0,0.00022739,4]
[346099702,1734705089560,-500.0,0.00022739,4]
[346099703,1734705089569,-500.0,0.00022739,4]
[346099704,1734705089579,-500.0,0.00022739,4]
[346099705,1734705089588,-500.0,0.00022739,4]
[346099706,1734705089597,-500.0,0.00022739,4]
[346099707,1734705089607,-500.0,0.00022739,4]
[346099708,1734705089616,-604.34447275,0.00022739,4]
[346099709,1734705089626,-500.0,0.00022739,4]
[346099710,1734705089635,-500.0,0.00022739,4]
[346099711,1734705089644,-500.0,0.00022739,4]
[346099712,1734705089653,-500.0,0.00022739,4]
[346099713,1734705089662,-500.0,0.00022739,4]
[346099714,1734705089672,-500.0,0.00022739,4]
[346099715,1734705089686,-514.75704184,0.00022739,4]